lending/lending_fUSD_20250114
["ID","MTS","AMOUNT","RATE_DAILY","PERIOD"]
[348915221,1736872255623,-764.12,0.00011061,2]
[348915222,1736872255633,-987.24,0.00011061,2]
[348915223,1736872255642,-500.0,0.00011061,2]
[348915224,1736872255652,-500.0,0.00011061,2]
[348915225,1736872255662,-500.0,0.00011061,2]
[348915226,1736872255672,-500.0,0.00011061,2]
[348915227,1736872255681,-1889.58,0.00011061,2]
[348915228,1736872255692,-538.84,0.00011061,2]
[348915229,1736872255701,-500.0,0.00011061,2]
[348915230,1736872255711,-500.0,0.00011062,2]
[348915231,1736872255720,-500.0,0.00011062,2]
[348915232,1736872255730,-500.0,0.00011062,2]
[348915233,1736872255739,-315.68537088,0.00011062,2]
[348915234,1736872255749,-500.0,0.00011062,2]
[348915235,1736872255759,-500.0,0.00011062,2]
[348915236,1736872255768,-500.0,0.00011062,2]
[348915237,1736872255779,-547.14,0.00011062,2]
[348915238,1736872255790,-500.0,0.00011062,2]
[348915239,1736872255805,-590.36398638,0.00011062,2]
[348915240,1736872255827,-500.0,0.00011062,2]
[348915241,1736872255837,-500.0,0.00011062,2]
[348915242,1736872255847,-500.0,0.00011062,2]
[348915243,1736872255857,-549.07900023,0.00011062,2]
[348915244,1736872255868,-500.0,0.00011062,2]
[348915245,1736872255878,-500.0,0.00011062,2]
[348915246,1736872255888,-500.0,0.00011062,2]
[348915247,1736872255898,-500.0,0.00011062,2]
[348915248,1736872255909,-500.0,0.00011062,2]
[348915249,1736872255918,-500.0,0.00011062,2]
[348915250,1736872255928,-500.0,0.00011062,2]
[348915251,1736872255938,-500.0,0.00011062,2]
[348915252,1736872255948,-500.0,0.00011062,2]
[348915253,1736872255958,-500.0,0.00011062,2]
[348915254,1736872255968,-500.0,0.00011062,2]
[348915255,1736872255977,-500.0,0.00011062,2]
[348915256,1736872255987,-500.0,0.00011062,2]
[348915257,1736872255996,-500.0,0.00011062,2]
[348915258,1736872256006,-500.0,0.00011062,2]
[348915259,1736872256015,-500.0,0.00011062,2]
[348915260,1736872256024,-500.0,0.00011062,2]
[348915261,1736872256035,-500.0,0.00011062,2]
[348915262,1736872256044,-500.0,0.00011062,2]
[348915263,1736872256054,-1451.36,0.00011062,2]
[348915264,1736872256063,-500.0,0.00011062,2]
[348915265,1736872256072,-1176.92,0.00011062,2]
[348915266,1736872256082,-500.0,0.00011062,2]
[348915267,1736872256091,-1055.97,0.00011062,2]
[348915268,1736872256101,-500.0,0.00011062,2]
[348915269,1736872256111,-500.0,0.00011062,2]
[348915270,1736872256120,-2317.71,0.00011062,2]
[348915271,1736872256129,-500.0,0.00011062,2]
[348915272,1736872256139,-500.0,0.00011062,2]
[348915273,1736872256149,-500.0,0.00011062,2]
[348915274,1736872256158,-1470.32,0.00011062,2]
[348915275,1736872256168,-2492.01,0.00011062,2]
[348915276,1736872256179,-500.0,0.00011062,2]
[348915277,1736872256191,-500.0,0.00011062,2]
[348915278,1736872256204,-500.0,0.00011062,2]
[348915279,1736872256214,-285.29929475,0.00011062,2]
[348915280,1736872256223,-1795.2,0.00011062,2]
[348915281,1736872256233,-500.0,0.00011062,2]
[348915282,1736872256243,-500.0,0.00011062,2]
[348915283,1736872256252,-500.0,0.00011062,2]
[348915284,1736872256261,-4913.35,0.00011062,2]
[348915285,1736872256271,-500.0,0.00011063,2]
[348915286,1736872256280,-507.80954311,0.00011063,2]
[348915287,1736872256289,-500.0,0.00011063,2]
[348915288,1736872256302,-500.0,0.00011063,2]
[348915289,1736872256312,-500.0,0.00011063,2]
[348915290,1736872256322,-500.0,0.00011063,2]
[348915291,1736872256331,-500.0,0.00011063,2]
[348915292,1736872256340,-500.0,0.00011063,2]
[348915293,1736872256350,-500.0,0.00011063,2]
[348915294,1736872256359,-662.39,0.00011063,2]
[348915295,1736872256369,-500.0,0.00011063,2]
[348915296,1736872256380,-500.0,0.00011063,2]
[348915297,1736872256389,-500.0,0.00011073,2]
[348915298,1736872256398,-162.47667438,0.00011083,2]
[348915299,1736872256408,-179.01749999,0.00011099,2]
[348915300,1736872256418,-179.01749997,0.00011099,2]
[348915301,1736872256428,-255.7,0.000111,2]
[348915302,1736872256437,-484.40542836,0.00011197,2]
[348915303,1736872256447,-500.0,0.00011227,2]
[348915304,1736872256456,-1272.04,0.00011227,2]
[348915305,1736872256466,-673.02,0.00011227,2]
[348915306,1736872256475,-1169.12,0.00011227,2]
[348915307,1736872256485,-1309.78,0.00011227,2]
[348915308,1736872256494,-1255.21,0.00011227,2]
[348915309,1736872256504,-1196.07,0.00011227,2]
[348915310,1736872256513,-1678.69,0.00011227,2]
[348915311,1736872256523,-3037.98,0.00011227,2]
[348915312,1736872256532,-875.97,0.00011227,2]
[348915313,1736872256542,-500.0,0.00011227,2]
[348915314,1736872256552,-957.02,0.00011227,2]
[348915315,1736872256562,-1235.2,0.00011227,2]
[348915316,1736872256571,-1325.08,0.00011227,2]
[348915317,1736872256581,-500.0,0.00011227,2]
[348915318,1736872256591,-2577.59,0.00011227,2]
[348915319,1736872256603,-1000.0,0.00011227,2]
[348915320,1736872256612,-2254.21,0.00011227,2]
[348915321,1736872256622,-500.0,0.00011259,2]
[348915322,1736872256631,-1271.53,0.00011259,2]
[348915323,1736872256641,-1644.81,0.00011259,2]
[348915324,1736872256651,-1764.64,0.00011259,2]
[348915325,1736872256660,-1182.39,0.00011259,2]
[348915326,1736872256669,-2864.91,0.00011259,2]
[348915327,1736872256679,-2088.07,0.00011259,2]
[348915328,1736872256688,-3460.76,0.00011259,2]
[348915329,1736872256698,-3934.84,0.00011259,2]
[348915330,1736872256707,-1542.99,0.00011259,2]
[348915331,1736872256717,-4501.55,0.00011259,2]
[348915332,1736872256727,-1666.36,0.0001126,2]
[348915333,1736872256736,-1666.36,0.0001126,2]
[348915334,1736872256746,-1666.36,0.0001126,2]
[348915335,1736872256756,-1666.36,0.0001126,2]
[348915336,1736872256767,-1666.36,0.0001126,2]
[348915337,1736872256777,-1666.36,0.0001126,2]
[348915338,1736872256787,-1666.36,0.0001126,2]
[348915339,1736872256798,-1666.36,0.0001126,2]
[348915340,1736872256808,-1666.36,0.0001126,2]
[348915341,1736872256818,-1666.36,0.0001126,2]
[348915342,1736872256828,-1666.36,0.0001126,2]
[348915343,1736872256838,-1666.36,0.0001126,2]
[348915344,1736872256848,-1666.36,0.0001126,2]
[348915345,1736872256857,-1666.36,0.0001126,2]
[348915346,1736872256867,-1666.36,0.0001126,2]
[348915347,1736872256878,-1666.36,0.0001126,2]
[348915348,1736872256887,-1666.36,0.0001126,2]
[348915349,1736872256897,-1666.36,0.0001126,2]
[348915350,1736872256907,-1666.36,0.0001126,2]
[348915351,1736872256916,-1666.36,0.0001126,2]
[348915352,1736872256925,-1666.36,0.0001126,2]
[348915353,1736872256935,-1666.36,0.0001126,2]
[348915354,1736872256945,-1666.36,0.0001126,2]
[348915355,1736872256955,-1666.59371593,0.0001126,2]
[348915356,1736872256965,-162.47667438,0.00011326,2]
[348915357,1736872256975,-1597.007,0.00011328,2]
[348915358,1736872256986,-2340.78,0.00011328,2]
[348915359,1736872256996,-3843.52,0.00011328,2]
[348915360,1736872257006,-1528.57,0.00011328,2]
[348915361,1736872257016,-1660.46,0.00011328,2]
[348915362,1736872257026,-1123.89,0.00011328,2]
[348915363,1736872257036,-1056.44,0.00011328,2]
[348915364,1736872257046,-2343.5,0.00011328,2]
[348915365,1736872257056,-1010.43,0.00011329,2]
[348915366,1736872257065,-2582.46,0.00011334,2]
[348915367,1736872257075,-3766.22,0.00011334,2]
[348915368,1736872257085,-2301.61,0.00011334,2]
[348915369,1736872257095,-500.0,0.00011334,2]
[348915370,1736872257105,-1547.57,0.00011334,2]
[348915371,1736872257114,-3820.79,0.00011334,2]
[348915372,1736872257125,-500.0,0.00011334,2]
[348915373,1736872257135,-500.0,0.00011334,2]
[348915374,1736872257146,-1208.85,0.00011334,2]
[348915375,1736872257156,-500.0,0.00011334,2]
[348915376,1736872257167,-500.0,0.00011334,2]
[348915377,1736872257176,-1426.4,0.00011334,2]
[348915378,1736872257186,-500.0,0.00011335,2]
[348915379,1736872257197,-500.0,0.00011335,2]
[348915380,1736872257207,-500.0,0.00011335,2]
[348915381,1736872257216,-500.0,0.00011335,2]
[348915382,1736872257226,-500.0,0.00011335,2]
[348915383,1736872257235,-583.02,0.00011335,2]
[348915384,1736872257245,-500.0,0.00011335,2]
[348915385,1736872257255,-714.03,0.00011335,2]
[348915386,1736872257265,-500.0,0.00011335,2]
[348915387,1736872257274,-1181.5,0.00011335,2]
[348915388,1736872257283,-792.24,0.00011335,2]
[348915389,1736872257292,-1068.78,0.00011335,2]
[348915390,1736872257306,-538.60057877,0.00011335,2]
[348915391,1736872257316,-866.79,0.00011335,2]
[348915392,1736872257326,-500.0,0.00011335,2]
[348915393,1736872257335,-602.0,0.00011335,2]
[348915394,1736872257346,-508.85,0.00011335,2]
[348915395,1736872257357,-634.25,0.00011335,2]
[348915396,1736872257366,-692.74,0.00011335,2]
[348915397,1736872257376,-536.73,0.00011335,2]
[348915398,1736872257387,-1038.27,0.00011335,2]
[348915399,1736872257398,-516.91,0.00011335,2]
[348915400,1736872257407,-500.0,0.00011335,2]
[348915401,1736872257416,-747.3,0.00011335,2]
[348915402,1736872257425,-500.0,0.00011335,2]
[348915403,1736872257433,-561.38,0.00011335,2]
[348915404,1736872257443,-988.41,0.00011335,2]
[348915405,1736872257453,-1790.56,0.00011335,2]
[348915406,1736872257462,-681.34,0.00011335,2]
[348915407,1736872257472,-500.0,0.00011335,2]
[348915408,1736872257482,-500.0,0.00011335,2]
[348915409,1736872257492,-500.0,0.00011335,2]
[348915410,1736872257501,-797.39,0.00011335,2]
[348915411,1736872257511,-500.0,0.00011335,2]
[348915412,1736872257520,-500.0,0.00011335,2]
[348915413,1736872257530,-500.0,0.00011335,2]
[348915414,1736872257540,-778.29,0.00011335,2]
[348915415,1736872257549,-500.0,0.00011335,2]
[348915416,1736872257560,-940.99,0.00011335,2]
[348915417,1736872257570,-500.0,0.00011335,2]
[348915418,1736872257579,-500.0,0.00011335,2]
[348915419,1736872257590,-1229.29,0.00011335,2]
[348915420,1736872257599,-1006.25,0.00011335,2]
[348915421,1736872257609,-500.0,0.00011335,2]
[348915422,1736872257619,-500.0,0.00011335,2]
[348915423,1736872257628,-976.73,0.00011335,2]
[348915424,1736872257638,-1044.65,0.00011335,2]
[348915425,1736872257648,-563.76,0.00011335,2]
[348915426,1736872257658,-1040.02,0.00011335,2]
[348915427,1736872257668,-747.75,0.00011335,2]
[348915428,1736872257678,-500.0,0.00011335,2]
[348915429,1736872257688,-942.04,0.00011335,2]
[348915430,1736872257698,-500.0,0.00011335,2]
[348915431,1736872257707,-500.0,0.00011335,2]
[348915432,1736872257717,-1793.87,0.00011335,2]
[348915433,1736872257727,-1163.45,0.00011335,2]
[348915434,1736872257737,-500.0,0.00011335,2]
[348915435,1736872257747,-593.13,0.00011335,2]
[348915436,1736872257757,-500.0,0.00011335,2]
[348915437,1736872257768,-500.0,0.00011335,2]
[348915438,1736872257778,-500.0,0.00011335,2]
[348915439,1736872257788,-1074.9,0.00011335,2]
[348915440,1736872257798,-500.0,0.00011335,2]
[348915441,1736872257809,-1106.23,0.00011335,2]
[348915442,1736872257819,-500.0,0.00011335,2]
[348915443,1736872257829,-2876.96,0.00011335,2]
[348915444,1736872257838,-1223.96,0.00011335,2]
[348915445,1736872257847,-500.0,0.00011335,2]
[348915446,1736872257855,-941.53,0.00011335,2]
[348915447,1736872257865,-500.0,0.00011335,2]
[348915448,1736872257876,-500.0,0.00011335,2]
[348915449,1736872257885,-826.21,0.00011335,2]
[348915450,1736872257895,-713.39,0.00011335,2]
[348915451,1736872257905,-1982.6,0.00011335,2]
[348915452,1736872257915,-500.0,0.00011335,2]
[348915453,1736872257925,-1269.8,0.00011335,2]
[348915454,1736872257935,-1061.78,0.00011335,2]
[348915455,1736872257944,-500.0,0.00011335,2]
[348915456,1736872257954,-1071.15,0.00011335,2]
[348915457,1736872257964,-647.07,0.00011335,2]
[348915458,1736872257974,-500.0,0.00011335,2]
[348915459,1736872257983,-1641.47,0.00011335,2]
[348915460,1736872257993,-500.0,0.00011335,2]
[348915461,1736872258002,-500.0,0.00011335,2]
[348915462,1736872258012,-500.0,0.00011335,2]
[348915463,1736872258022,-1015.13304,0.00011335,2]
[348915464,1736872258032,-500.0,0.00011335,2]
[348915465,1736872258042,-500.0,0.00011335,2]
[348915466,1736872258051,-1061.21,0.00011335,2]
[348915467,1736872258062,-500.0,0.00011335,2]
[348915468,1736872258072,-850.59,0.00011335,2]
[348915469,1736872258082,-500.0,0.00011335,2]
[348915470,1736872258091,-4483.26,0.00011335,2]
[348915471,1736872258102,-500.0,0.00011335,2]
[348915472,1736872258111,-1028.024937,0.00011335,2]
[348915473,1736872258121,-1008.96,0.00011335,2]
[348915474,1736872258131,-500.0,0.00011335,2]
[348915475,1736872258140,-1034.71,0.00011335,2]
[348915476,1736872258150,-856.72,0.00011335,2]
[348915477,1736872258159,-500.0,0.00011335,2]
[348915478,1736872258169,-1242.21,0.00011335,2]
[348915479,1736872258179,-729.65,0.00011335,2]
[348915480,1736872258189,-500.0,0.00011335,2]
[348915481,1736872258198,-807.27,0.00011335,2]
[348915482,1736872258207,-500.0,0.00011335,2]
[348915483,1736872258216,-1062.24,0.00011335,2]
[348915484,1736872258226,-500.0,0.00011335,2]
[348915485,1736872258235,-500.0,0.00011335,2]
[348915486,1736872258423,-570.32,0.00011335,2]
[348915487,1736872258433,-942.52,0.00011335,2]
[348915488,1736872258443,-957.09,0.00011335,2]
[348915489,1736872258453,-500.0,0.00011335,2]
[348915490,1736872258463,-500.0,0.00011335,2]
[348915491,1736872258473,-304.33058377,0.00011335,2]
[348915492,1736872258483,-500.0,0.00011335,2]
[348915493,1736872258493,-693.23,0.00011335,2]
[348915494,1736872258504,-3653.54,0.00011335,2]
[348915495,1736872258514,-583.72,0.00011335,2]
[348915496,1736872258524,-500.0,0.00011335,2]
[348915497,1736872258535,-500.0,0.00011335,2]
[348915498,1736872258545,-1575.62,0.00011335,2]
[348915499,1736872258554,-500.0,0.00011335,2]
[348915500,1736872258567,-3284.13,0.00011335,2]
[348915501,1736872258577,-1170.16,0.00011335,2]
[348915502,1736872258587,-10132.63,0.00011335,2]
[348915503,1736872258599,-775.45,0.00011335,2]
[348915504,1736872258608,-500.0,0.00011335,2]
[348915505,1736872258618,-500.0,0.00011335,2]
[348915506,1736872258627,-1128.07,0.00011335,2]
[348915507,1736872258637,-500.0,0.00011335,2]
[348915508,1736872258646,-773.5,0.00011335,2]
[348915509,1736872258656,-1201.11,0.00011335,2]
[348915510,1736872258665,-4764.34,0.00011335,2]
[348915511,1736872258675,-593.12,0.00011335,2]
[348915512,1736872258685,-1091.87,0.00011335,2]
[348915513,1736872258695,-804.34,0.00011335,2]
[348915514,1736872258705,-3004.08,0.00011335,2]
[348915515,1736872258715,-628.33,0.00011335,2]
[348915516,1736872258725,-721.13,0.00011335,2]
[348915517,1736872258735,-2906.87,0.00011335,2]
[348915518,1736872258745,-500.0,0.00011335,2]
[348915519,1736872258755,-6610.26,0.00011335,2]
[348915520,1736872258765,-500.0,0.00011335,2]
[348915521,1736872258775,-1597.69,0.00011335,2]
[348915522,1736872258785,-903.79,0.00011335,2]
[348915523,1736872258795,-500.0,0.00011335,2]
[348915524,1736872258805,-500.0,0.00011335,2]
[348915525,1736872258820,-1417.4,0.00011335,2]
[348915526,1736872258830,-500.0,0.00011335,2]
[348915527,1736872258839,-5191.48,0.00011335,2]
[348915528,1736872258849,-505.24,0.00011335,2]
[348915529,1736872258859,-1623.37,0.00011335,2]
[348915530,1736872258869,-500.0,0.00011335,2]
[348915531,1736872258878,-500.0,0.00011335,2]
[348915532,1736872258887,-903.24,0.00011335,2]
[348915533,1736872258897,-500.0,0.00011335,2]
[348915534,1736872258907,-1969.17,0.00011335,2]
[348915535,1736872258918,-962.15,0.00011335,2]
[348915536,1736872258927,-932.49,0.00011335,2]
[348915537,1736872258937,-956.86,0.00011335,2]
[348915538,1736872258947,-500.0,0.00011335,2]
[348915539,1736872258956,-1098.98,0.00011335,2]
[348915540,1736872258966,-500.0,0.00011335,2]
[348915541,1736872258976,-3822.97,0.00011335,2]
[348915542,1736872258986,-572.49,0.00011335,2]
[348915543,1736872258995,-500.0,0.00011335,2]
[348915544,1736872259005,-2529.39,0.00011335,2]
[348915545,1736872259015,-764.12,0.00011335,2]
[348915546,1736872259025,-987.24,0.00011335,2]
[348915547,1736872259035,-500.0,0.00011335,2]
[348915548,1736872259044,-500.0,0.00011335,2]
[348915549,1736872259054,-500.0,0.00011335,2]
[348915550,1736872259068,-191.45748554,0.00011335,2]
[348915551,1736872259078,-1889.58,0.00011335,2]
[348915552,1736872259088,-538.84,0.00011335,2]
[348915553,1736872259097,-500.0,0.00011335,2]
[348915554,1736872259108,-500.0,0.00011336,2]
[348915555,1736872259117,-500.0,0.00011336,2]
[348915556,1736872259127,-500.0,0.00011336,2]
[348915557,1736872259136,-500.0,0.00011336,2]
[348915558,1736872259146,-547.14,0.00011336,2]
[348915559,1736872259155,-500.0,0.00011336,2]
[348915560,1736872259164,-500.0,0.00011336,2]
[348915561,1736872259174,-500.0,0.00011336,2]
[348915562,1736872259183,-500.0,0.00011336,2]
[348915563,1736872259193,-500.0,0.00011336,2]
[348915564,1736872259203,-500.0,0.00011336,2]
[348915565,1736872259212,-635.3718607,0.00011336,2]
[348915566,1736872259222,-500.0,0.00011336,2]
[348915567,1736872259231,-500.0,0.00011336,2]
[348915568,1736872259240,-500.0,0.00011336,2]
[348915569,1736872259250,-500.0,0.00011336,2]
[348915570,1736872259260,-515.51706574,0.00011336,2]
[348915571,1736872259270,-500.0,0.00011336,2]
[348915572,1736872259279,-500.0,0.00011336,2]
[348915573,1736872259288,-500.0,0.00011336,2]
[348915574,1736872259301,-500.0,0.00011336,2]
[348915575,1736872259312,-500.0,0.00011336,2]
[348915576,1736872259322,-500.0,0.00011336,2]
[348915577,1736872259332,-500.0,0.00011336,2]
[348915578,1736872259342,-500.0,0.00011336,2]
[348915579,1736872259352,-500.0,0.00011336,2]
[348915580,1736872259362,-500.0,0.00011336,2]
[348915581,1736872259371,-1451.36,0.00011336,2]
[348915582,1736872259381,-500.0,0.00011336,2]
[348915583,1736872259390,-1176.92,0.00011336,2]
[348915584,1736872259399,-500.0,0.00011336,2]
[348915585,1736872259409,-1055.97,0.00011336,2]
[348915586,1736872259419,-500.0,0.00011336,2]
[348915587,1736872259428,-500.0,0.00011336,2]
[348915588,1736872259438,-2317.71,0.00011336,2]
[348915589,1736872259447,-500.0,0.00011336,2]
[348915590,1736872259456,-500.0,0.00011336,2]
[348915591,1736872259466,-500.0,0.00011336,2]
[348915592,1736872259477,-1470.32,0.00011336,2]
[348915593,1736872259487,-500.0,0.00011336,2]
[348915594,1736872259497,-2492.01,0.00011336,2]
[348915595,1736872259507,-500.0,0.00011336,2]
[348915596,1736872259516,-500.0,0.00011336,2]
[348915597,1736872259526,-1795.2,0.00011336,2]
[348915598,1736872259536,-500.0,0.00011336,2]
[348915599,1736872259545,-500.0,0.00011336,2]
[348915600,1736872259557,-500.0,0.00011336,2]
[348915601,1736872259568,-4913.35,0.00011336,2]
[348915602,1736872259578,-500.0,0.00011337,2]
[348915603,1736872259588,-500.0,0.00011337,2]
[348915604,1736872259599,-500.0,0.00011337,2]
[348915605,1736872259609,-500.0,0.00011337,2]
[348915606,1736872259619,-500.0,0.00011337,2]
[348915607,1736872259628,-500.0,0.00011337,2]
[348915608,1736872259638,-500.0,0.00011337,2]
[348915609,1736872259647,-662.39,0.00011337,2]
[348915610,1736872259656,-500.0,0.00011337,2]
[348915611,1736872259666,-500.0,0.00011337,2]
[348915612,1736872259675,-1456.54324193,0.00011383,2]
[348915613,1736872259685,-500.0,0.00011469,2]
[348915614,1736872259694,-500.0,0.00011469,2]
[348915615,1736872259703,-500.0,0.00011469,2]
[348915616,1736872259713,-500.0,0.00011469,2]
[348915617,1736872259724,-500.0,0.00011469,2]
[348915618,1736872259734,-500.0,0.00011469,2]
[348915619,1736872259744,-500.0,0.00011469,2]
[348915620,1736872259753,-500.0,0.00011469,2]
[348915621,1736872259763,-500.0,0.00011469,2]
[348915622,1736872259773,-500.0,0.00011469,2]
[348915623,1736872259783,-500.0,0.00011469,2]
[348915624,1736872259793,-500.0,0.00011469,2]
[348915625,1736872259802,-500.0,0.00011469,2]
[348915626,1736872259813,-500.0,0.00011469,2]
[348915627,1736872259822,-500.0,0.00011469,2]
[348915628,1736872259832,-500.0,0.00011469,2]
[348915629,1736872259841,-500.0,0.00011469,2]
[348915630,1736872259850,-500.0,0.00011469,2]
[348915631,1736872259861,-500.0,0.00011469,2]
[348915632,1736872259871,-500.0,0.00011469,2]
[348915633,1736872259881,-500.0,0.00011469,2]
[348915634,1736872259891,-500.0,0.00011469,2]
[348915635,1736872259900,-500.0,0.00011469,2]
[348915636,1736872259911,-500.0,0.00011469,2]
[348915637,1736872259920,-500.0,0.00011469,2]
[348915638,1736872259930,-500.0,0.00011469,2]
[348915639,1736872259940,-500.0,0.00011469,2]
[348915640,1736872259950,-500.0,0.00011469,2]
[348915641,1736872259960,-500.0,0.00011469,2]
[348915642,1736872259970,-500.0,0.00011469,2]
[348915643,1736872259979,-500.0,0.00011469,2]
[348915644,1736872259988,-500.0,0.00011469,2]
[348915645,1736872259998,-500.0,0.00011469,2]
[348915646,1736872260008,-500.0,0.00011469,2]
[348915647,1736872260017,-500.0,0.00011469,2]
[348915648,1736872260028,-500.0,0.00011469,2]
[348915649,1736872260038,-500.0,0.00011469,2]
[348915650,1736872260048,-500.0,0.00011469,2]
[348915651,1736872260059,-500.0,0.00011469,2]
[348915652,1736872260068,-500.0,0.00011469,2]
[348915653,1736872260079,-500.0,0.00011469,2]
[348915654,1736872260089,-500.0,0.00011469,2]
[348915655,1736872260098,-500.0,0.00011469,2]
[348915656,1736872260108,-500.0,0.00011469,2]
[348915657,1736872260118,-500.0,0.00011469,2]
[348915658,1736872260128,-500.0,0.00011469,2]
[348915659,1736872260137,-500.0,0.00011469,2]
[348915660,1736872260146,-500.0,0.00011469,2]
[348915661,1736872260156,-500.0,0.00011469,2]
[348915662,1736872260166,-500.0,0.00011469,2]
[348915663,1736872260175,-500.0,0.00011469,2]
[348915664,1736872260185,-500.0,0.00011469,2]
[348915665,1736872260195,-500.0,0.00011469,2]
[348915666,1736872260205,-500.0,0.00011469,2]
[348915667,1736872260215,-500.0,0.00011469,2]
[348915668,1736872260225,-500.0,0.00011469,2]
[348915669,1736872260235,-500.0,0.00011469,2]
[348915670,1736872260245,-500.0,0.00011469,2]
[348915671,1736872260255,-500.0,0.00011469,2]
[348915672,1736872260265,-500.0,0.00011469,2]
[348915673,1736872260274,-500.0,0.00011469,2]
[348915674,1736872260283,-500.0,0.00011469,2]
[348915675,1736872260293,-500.0,0.00011469,2]
[348915676,1736872260307,-500.0,0.00011469,2]
[348915677,1736872260320,-500.0,0.00011469,2]
[348915678,1736872260330,-500.0,0.00011469,2]
[348915679,1736872260339,-500.0,0.00011469,2]
[348915680,1736872260350,-500.0,0.00011469,2]
[348915681,1736872260359,-500.0,0.00011469,2]
[348915682,1736872260369,-500.0,0.00011469,2]
[348915683,1736872260380,-500.0,0.00011469,2]
[348915684,1736872260391,-500.0,0.00011469,2]
[348915685,1736872260400,-500.0,0.00011469,2]
[348915686,1736872260410,-500.0,0.00011469,2]
[348915687,1736872260419,-500.0,0.00011469,2]
[348915688,1736872260429,-500.0,0.00011469,2]
[348915689,1736872260438,-500.0,0.00011469,2]
[348915690,1736872260449,-500.0,0.00011469,2]
[348915691,1736872260458,-500.0,0.00011469,2]
[348915692,1736872260468,-500.0,0.00011469,2]
[348915693,1736872260478,-500.0,0.00011469,2]
[348915694,1736872260488,-500.0,0.00011469,2]
[348915695,1736872260498,-500.0,0.00011469,2]
[348915696,1736872260508,-500.0,0.00011469,2]
[348915697,1736872260518,-500.0,0.00011469,2]
[348915698,1736872260529,-500.0,0.00011469,2]
[348915699,1736872260540,-500.0,0.00011469,2]
[348915700,1736872260551,-500.0,0.00011469,2]
[348915701,1736872260563,-500.0,0.00011469,2]
[348915702,1736872260573,-500.0,0.00011469,2]
[348915703,1736872260583,-500.0,0.00011469,2]
[348915704,1736872260594,-500.0,0.00011469,2]
[348915705,1736872260604,-500.0,0.00011469,2]
[348915706,1736872260614,-500.0,0.00011469,2]
[348915707,1736872260624,-500.0,0.00011469,2]
[348915708,1736872260633,-500.0,0.00011469,2]
[348915709,1736872260643,-500.0,0.00011469,2]
[348915710,1736872260652,-500.0,0.00011469,2]
[348915711,1736872260661,-500.0,0.00011469,2]
[348915712,1736872260670,-500.0,0.00011469,2]
[348915713,1736872260680,-500.0,0.00011469,2]
[348915714,1736872260689,-500.0,0.00011469,2]
[348915715,1736872260699,-500.0,0.00011469,2]
[348915716,1736872260708,-500.0,0.00011469,2]
[348915717,1736872260718,-500.0,0.00011469,2]
[348915718,1736872260727,-500.0,0.00011469,2]
[348915719,1736872260737,-500.0,0.00011469,2]
[348915720,1736872260747,-500.0,0.00011469,2]